fUSD/lending_fUSD_20241119
["ID","MTS","AMOUNT","RATE_DAILY","PERIOD"]
[342661254,1732027886245,-690.01267942,0.00032109,10]
[342661255,1732027886254,-7756.73435332,0.00032109,7]
[342661256,1732027886263,-16934.3489882,0.00032109,14]
[342661257,1732027886272,-2192.07243884,0.00032109,10]
[342661258,1732027886285,-846.56800376,0.00032109,10]
[342661259,1732027886295,-1000.0,0.00032109,10]
[342661260,1732027886304,-500.0,0.00032109,10]
[342661261,1732027886314,-10081.90792215,0.00032109,7]
[342661262,1732027886326,-1810.73381548,0.00032109,10]
[342661263,1732027886337,-5100.0,0.00032109,33]
[342661264,1732027886348,-500.0,0.00032109,120]
[342661265,1732027886358,-500.0,0.00032109,120]
[342661266,1732027886368,-315.91341053,0.00032109,120]
[342661267,1732027886378,-500.0,0.00032109,120]
[342661268,1732027886388,-500.0,0.00032109,120]
[342661269,1732027886398,-500.0,0.00032109,120]
[342661270,1732027886407,-522.5,0.00032109,120]
[342661271,1732027886417,-500.0,0.00032109,120]
[342661272,1732027886426,-500.0,0.00032109,120]
[342661273,1732027886435,-500.0,0.00032109,120]
[342661274,1732027886444,-203.95286236,0.00032109,120]
[342661275,1732027886454,-595.87016715,0.00032109,120]
[342661276,1732027886463,-500.0,0.00032109,120]
[342661277,1732027886472,-411.20137575,0.00032109,120]
[342661278,1732027886481,-500.0,0.00032109,120]
[342661279,1732027886489,-500.0,0.00032109,120]
[342661280,1732027886500,-493.21862425,0.00032109,120]
[342661281,1732027886509,-151.91738663,0.00032109,60]
[342661282,1732027886519,-1010.86231643,0.00032109,120]
[342661283,1732027886534,-193.0,0.00032109,30]
[342661284,1732027886543,-193.0,0.00032109,30]
[342661285,1732027886551,-2000.0,0.00032109,30]
[342661286,1732027886561,-526.73952109,0.00032109,120]
[342661287,1732027886570,-904.11674056,0.00032109,30]
[342661288,1732027886580,-3372.62028111,0.00032109,2]
[342661289,1732027886590,-1992.6054,0.00032109,120]
[342661290,1732027886599,-50000.0,0.00032109,30]
[342661291,1732027886608,-50000.0,0.00032109,31]
[342661292,1732027886619,-50000.0,0.00032109,32]
[342661293,1732027886628,-50000.0,0.00032109,33]
[342661294,1732027886637,-50000.0,0.00032109,34]
[342661295,1732027886647,-50000.0,0.00032109,35]
[342661296,1732027886655,-196.0,0.00032109,30]
[342661297,1732027886665,-196.0,0.00032109,30]
[342661298,1732027886674,-196.0,0.00032109,30]
[342661299,1732027886683,-200.0,0.00032109,30]
[342661300,1732027886691,-200.0,0.00032109,30]
[342661301,1732027886701,-3000.0,0.00032109,120]
[342661302,1732027886710,-522.0,0.00032109,3]
[342661303,1732027886719,-10039.51900032,0.00032109,120]
[342661304,1732027886729,-3898.73506825,0.00032109,2]
[342661305,1732027886738,-1000.0,0.00032109,30]
[342661306,1732027886748,-1000.0,0.00032109,30]
[342661307,1732027886757,-370.39917358,0.00032109,120]
[342661308,1732027886766,-1000.0,0.00032109,30]
[342661309,1732027886780,-1000.0,0.00032109,30]
[342661310,1732027886790,-1000.0,0.00032109,30]
[342661311,1732027886799,-1000.0,0.00032109,30]
[342661312,1732027886809,-1000.0,0.00032109,30]
[342661313,1732027886818,-1000.0,0.00032109,30]
[342661314,1732027886827,-1008.11673378,0.00032109,30]
[342661315,1732027886837,-1000.0,0.00032109,30]
[342661316,1732027886846,-1000.0,0.00032109,30]
[342661317,1732027886855,-1000.0,0.00032109,30]
[342661318,1732027886864,-477.47602589,0.00032109,30]
[342661319,1732027886873,-1000.0,0.00032109,30]
[342661320,1732027886883,-1000.0,0.00032109,30]
[342661321,1732027886891,-1784.11376085,0.00032109,30]
[342661322,1732027886904,-1000.0,0.00032109,120]
[342661323,1732027886914,-1000.0,0.00032109,30]
[342661324,1732027886923,-1000.0,0.00032109,30]
[342661325,1732027886932,-1000.0,0.00032109,30]
[342661326,1732027886942,-1000.0,0.00032109,60]
[342661327,1732027886951,-1000.0,0.00032109,30]
[342661328,1732027886960,-1000.0,0.00032109,30]
[342661329,1732027886969,-1000.0,0.00032109,60]
[342661330,1732027886978,-1000.0,0.00032109,30]
[342661331,1732027886987,-1000.0,0.00032109,30]
[342661332,1732027886996,-1000.0,0.00032109,30]
[342661333,1732027887006,-1000.0,0.00032109,30]
[342661334,1732027887015,-1000.0,0.00032109,30]
[342661335,1732027887029,-1000.0,0.00032109,30]
[342661336,1732027887038,-1000.0,0.00032109,30]
[342661337,1732027887048,-1002.8735487,0.00032109,30]
[342661338,1732027887057,-1000.0,0.00032109,30]
[342661339,1732027887066,-1000.0,0.00032109,30]
[342661340,1732027887075,-1581.52577903,0.00032109,60]
[342661341,1732027887084,-1000.0,0.00032109,60]
[342661342,1732027887093,-1000.0,0.00032109,30]
[342661343,1732027887102,-1000.0,0.00032109,60]
[342661344,1732027887111,-1000.0,0.00032109,60]
[342661345,1732027887120,-1000.0,0.00032109,60]
[342661346,1732027887131,-1000.0,0.00032109,60]
[342661347,1732027887140,-1000.0,0.00032109,60]
[342661348,1732027887149,-1000.0,0.00032109,30]
[342661349,1732027887158,-1000.0,0.00032109,30]
[342661350,1732027887168,-1000.0,0.00032109,60]
[342661351,1732027887177,-1000.0,0.00032109,60]
[342661352,1732027887186,-1312.04826674,0.00032109,120]
[342661353,1732027887195,-5235.47877988,0.00032109,4]
[342661354,1732027887204,-1114.86540637,0.00032109,120]
[342661355,1732027887213,-744.85018699,0.00032109,120]
[342661356,1732027887221,-2000.0,0.00032109,30]
[342661357,1732027887230,-586.74080989,0.00032109,120]
[342661358,1732027887239,-1065.94,0.00032109,120]
[342661359,1732027887248,-1065.94,0.00032109,120]
[342661360,1732027887256,-1065.94,0.00032109,120]
[342661361,1732027887265,-1065.94,0.00032109,120]
[342661362,1732027887275,-1065.94,0.00032109,120]
[342661363,1732027887291,-1065.94,0.00032109,120]
[342661364,1732027887299,-1065.94,0.00032109,120]
[342661365,1732027887311,-1065.94,0.00032109,120]
[342661366,1732027887320,-1065.94,0.00032109,120]
[342661367,1732027887329,-1065.94,0.00032109,120]
[342661368,1732027887339,-1065.94,0.00032109,120]
[342661369,1732027887353,-1065.94,0.00032109,120]
[342661370,1732027887362,-1065.94,0.00032109,120]
[342661371,1732027887371,-1065.94,0.00032109,120]
[342661372,1732027887381,-1065.94,0.00032109,120]
[342661373,1732027887390,-1065.94,0.00032109,120]
[342661374,1732027887399,-1065.94,0.00032109,120]
[342661375,1732027887407,-1065.94,0.00032109,120]
[342661376,1732027887416,-1065.94,0.00032109,120]
[342661377,1732027887427,-1065.94,0.00032109,120]
[342661378,1732027887438,-1065.94,0.00032109,120]
[342661379,1732027887446,-1065.94,0.00032109,120]
[342661380,1732027887455,-1065.94,0.00032109,120]
[342661381,1732027887464,-1066.10554577,0.00032109,120]
[342661382,1732027887473,-4698.13164305,0.00032109,15]
[342661383,1732027887482,-383.0,0.00032109,120]
[342661384,1732027887491,-211504.52504817,0.00032109,30]
[342661385,1732027887500,-50000.0,0.00032109,30]
[342661386,1732027887510,-50000.0,0.00032109,31]
[342661387,1732027887519,-50000.0,0.00032109,32]
[342661388,1732027887533,-50000.0,0.00032109,33]
[342661389,1732027887542,-50000.0,0.00032109,34]
[342661390,1732027887552,-50000.0,0.00032109,35]
[342661391,1732027887563,-50000.0,0.00032109,30]
[342661392,1732027887573,-50000.0,0.00032109,31]
[342661393,1732027887583,-50000.0,0.00032109,32]
[342661394,1732027887593,-50000.0,0.00032109,33]
[342661395,1732027887603,-50000.0,0.00032109,34]
[342661396,1732027887612,-500.0,0.00032109,120]
[342661397,1732027887622,-500.0,0.00032109,120]
[342661398,1732027887631,-500.0,0.00032109,120]
[342661399,1732027887640,-500.0,0.00032109,120]
[342661400,1732027887650,-500.0,0.00032109,120]
[342661401,1732027887659,-500.0,0.00032109,120]
[342661402,1732027887669,-500.0,0.00032109,120]
[342661403,1732027887678,-500.0,0.00032109,120]
[342661404,1732027887687,-500.0,0.00032109,120]
[342661405,1732027887697,-500.0,0.00032109,120]
[342661406,1732027887706,-500.0,0.00032109,120]
[342661407,1732027887715,-500.0,0.00032109,120]
[342661408,1732027887724,-500.0,0.00032109,120]
[342661409,1732027887734,-500.0,0.00032109,120]
[342661410,1732027887744,-500.0,0.00032109,120]
[342661411,1732027887753,-500.0,0.00032109,120]
[342661412,1732027887762,-484.08,0.00032109,120]
[342661413,1732027887771,-500.0,0.00032109,120]
[342661414,1732027887789,-500.0,0.00032109,120]
[342661415,1732027887798,-500.0,0.00032109,120]
[342661416,1732027887808,-500.0,0.00032109,120]
[342661417,1732027887817,-500.0,0.00032109,120]
[342661418,1732027887826,-165.85923911,0.00032109,120]
[342661419,1732027887835,-3888.53,0.00032109,120]
[342661420,1732027887844,-3888.53,0.00032109,120]
[342661421,1732027887853,-3888.53,0.00032109,120]
[342661422,1732027887862,-3888.53,0.00032109,120]
[342661423,1732027887871,-3888.53,0.00032109,120]
[342661424,1732027887881,-3888.53,0.00032109,120]
[342661425,1732027887890,-3888.53,0.00032109,120]
[342661426,1732027887899,-3888.53,0.00032109,120]
[342661427,1732027887908,-3888.53,0.00032109,120]
[342661428,1732027887917,-3888.53,0.00032109,120]
[342661429,1732027887926,-3888.53,0.00032109,120]
[342661430,1732027887935,-3888.53,0.00032109,120]
[342661431,1732027887944,-3888.53,0.00032109,120]
[342661432,1732027887954,-3888.53,0.00032109,120]
[342661433,1732027887963,-3888.53,0.00032109,120]
[342661434,1732027887972,-3888.53,0.00032109,120]
[342661435,1732027887981,-3888.53,0.00032109,120]
[342661436,1732027887990,-3888.53,0.00032109,120]
[342661437,1732027887999,-3888.53,0.00032109,120]
[342661438,1732027888007,-3888.53,0.00032109,120]
[342661439,1732027888016,-3888.53,0.00032109,120]
[342661440,1732027888030,-3888.53,0.00032109,120]
[342661441,1732027888039,-3888.53,0.00032109,120]
[342661442,1732027888048,-3888.74735784,0.00032109,120]
[342661443,1732027888057,-1980.2,0.00032109,120]
[342661444,1732027888066,-1980.2,0.00032109,120]
[342661445,1732027888075,-1980.2,0.00032109,120]
[342661446,1732027888084,-1980.2,0.00032109,120]
[342661447,1732027888097,-1980.2,0.00032109,120]
[342661448,1732027888106,-1980.2,0.00032109,120]
[342661449,1732027888115,-1980.2,0.00032109,120]
[342661450,1732027888124,-1980.2,0.00032109,120]
[342661451,1732027888133,-1980.2,0.00032109,120]
[342661452,1732027888142,-1980.2,0.00032109,120]
[342661453,1732027888151,-1980.2,0.00032109,120]
[342661454,1732027888160,-1980.2,0.00032109,120]
[342661455,1732027888169,-1980.2,0.00032109,120]
[342661456,1732027888178,-1980.2,0.00032109,120]
[342661457,1732027888187,-1980.2,0.00032109,120]
[342661458,1732027888196,-1980.2,0.00032109,120]
[342661459,1732027888205,-1980.2,0.00032109,120]
[342661460,1732027888215,-1980.2,0.00032109,120]
[342661461,1732027888224,-1980.2,0.00032109,120]
[342661462,1732027888233,-1980.2,0.00032109,120]
[342661463,1732027888242,-1980.2,0.00032109,120]
[342661464,1732027888252,-1980.2,0.00032109,120]
[342661465,1732027888261,-1980.2,0.00032109,120]
[342661466,1732027888270,-1980.42218558,0.00032109,120]
[342661467,1732027888283,-1318.47586435,0.00032109,2]
[342661468,1732027888293,-454.4637034,0.00032109,120]
[342661469,1732027888302,-1013.74968792,0.00032109,120]
[342661470,1732027888311,-1006.0,0.00032109,2]
[342661471,1732027888320,-1000.0,0.00032109,2]
[342661472,1732027888330,-1000.0,0.00032109,2]
[342661473,1732027888339,-22781.70040973,0.00032109,30]
[342661474,1732027888352,-203198.6603595,0.00032109,120]
[342661475,1732027888361,-102394.74194623,0.00032109,120]
[342661476,1732027888370,-29147.54857437,0.00032109,120]
[342661477,1732027888379,-504492.8424838,0.00032109,120]
[342661478,1732027888390,-65055.55577349,0.00032109,120]
[342661479,1732027888399,-4066.51011052,0.00032109,120]
[342661480,1732027888408,-4391.42317633,0.00032109,120]
[342661481,1732027888419,-7468.67171118,0.00032109,120]
[342661482,1732027888428,-4387.65414667,0.00032109,120]
[342661483,1732027888437,-209263.08285263,0.00032109,120]
[342661484,1732027888446,-33389.87022104,0.00032109,120]
[342661485,1732027888455,-171000.0,0.00032109,120]
[342661486,1732027888464,-190392.16787772,0.00032109,60]
[342661487,1732027888473,-53591.20801288,0.00032109,60]
[342661488,1732027888482,-32046.05872268,0.00032109,2]
[342661489,1732027888491,-5100.0,0.00032109,32]
[342661490,1732027888501,-5000.0,0.00032109,30]
[342661491,1732027888510,-5100.0,0.00032109,31]
[342661492,1732027888519,-647.75557436,0.00032109,120]
[342661493,1732027888531,-5000.0,0.00032109,31]
[342661494,1732027888540,-220744.77315447,0.00032109,10]
[342661495,1732027888550,-10000.0,0.00032109,30]
[342661496,1732027888558,-10000.0,0.00032109,30]
[342661497,1732027888567,-10000.0,0.00032109,7]
[342661498,1732027888576,-10000.0,0.00032109,7]
[342661499,1732027888585,-250.0,0.00032109,30]
[342661500,1732027888594,-994.16621997,0.00032109,120]
[342661501,1732027888603,-436.55515774,0.00032109,120]
[342661502,1732027888613,-1022.34595902,0.00032109,120]
[342661503,1732027888622,-155.58014239,0.00032109,30]
[342661504,1732027888632,-20331.0,0.00032109,120]
[342661505,1732027888641,-263.0,0.00032109,2]
[342661506,1732027888650,-40000.0,0.00032109,10]
[342661507,1732027888659,-3586.78541923,0.00032109,120]
[342661508,1732027888668,-48996.06140211,0.00032109,16]
[342661509,1732027888678,-1000.0,0.00032109,30]
[342661510,1732027888687,-167.96442389,0.00032109,2]
[342661511,1732027888696,-302.41350114,0.00032109,120]
[342661512,1732027888706,-151.385,0.00032109,14]
[342661513,1732027888716,-66000.0,0.00032109,30]
[342661514,1732027888725,-13024.46891656,0.00032109,5]
[342661515,1732027888734,-1000.0,0.00032109,30]
[342661516,1732027888744,-5100.0,0.00032109,30]
[342661517,1732027888753,-3188.81577718,0.00032109,5]
[342661518,1732027888763,-1000.0,0.00032109,30]
[342661519,1732027888772,-1000.0,0.00032109,60]
[342661520,1732027888788,-1039.5,0.00032109,30]
[342661521,1732027888797,-279.68344511,0.00032109,120]
[342661522,1732027888807,-460.46201629,0.00032109,120]
[342661523,1732027888817,-181.28004225,0.00032109,60]
[342661524,1732027888826,-1001.05036304,0.00032109,120]
[342661525,1732027888836,-2706.6821797,0.00032109,31]
[342661526,1732027888845,-1699.45354872,0.00032109,10]
[342661527,1732027888854,-588.03261462,0.00032109,7]
[342661528,1732027888864,-167.88276554,0.00032109,30]
[342661529,1732027888873,-5756.61552927,0.00032109,120]
[342661530,1732027888882,-5100.0,0.00032109,34]
[342661531,1732027888892,-202.44644189,0.00032109,30]
[342661532,1732027888901,-153.0,0.00032109,120]
[342661533,1732027888910,-5645.450999,0.00032109,30]
[342661534,1732027888919,-9352.64121943,0.00032109,5]
[342661535,1732027888929,-20000.0,0.00032109,90]
[342661536,1732027888938,-20000.0,0.00032109,30]
[342661537,1732027888947,-1001.1811774,0.00032109,15]
[342661538,1732027888956,-15000.0,0.00032109,60]
[342661539,1732027888966,-20000.0,0.00032109,90]
[342661540,1732027888975,-38994.91123223,0.00032109,120]
[342661541,1732027888984,-4191.31444037,0.00032109,120]
[342661542,1732027888993,-201403.40063492,0.00032109,120]
[342661543,1732027889002,-20076.43433236,0.00032109,119]
[342661544,1732027889012,-17170.93837697,0.00032109,120]
[342661545,1732027889021,-11725.65943196,0.00032109,120]
[342661546,1732027889034,-500.0,0.00032109,120]
[342661547,1732027889043,-150.0,0.00032109,2]
[342661548,1732027889053,-175.16875396,0.00032109,60]
[342661549,1732027889063,-2954.53287821,0.00032109,90]
[342661550,1732027889072,-3099.75055378,0.00032109,30]
[342661551,1732027889082,-61793.60502577,0.00032109,120]
[342661552,1732027889091,-497.78218097,0.00032109,30]
[342661553,1732027889100,-65806.4825862,0.00032109,50]
[342661554,1732027889109,-372.03018308,0.00032109,30]
[342661555,1732027889119,-2200.3945652,0.00032109,120]
[342661556,1732027889128,-1557.75747736,0.00032109,30]
[342661557,1732027889138,-853.40962442,0.00032109,30]
[342661558,1732027889147,-2702.84361453,0.00032109,30]
[342661559,1732027889157,-2315.34739514,0.00032109,30]
[342661560,1732027889166,-1778.56264857,0.00032109,120]
[342661561,1732027889176,-1958.90754786,0.00032109,30]
[342661562,1732027889185,-4194.93814037,0.00032109,30]
[342661563,1732027889196,-720.15308095,0.00032109,30]
[342661564,1732027889205,-4002.42955916,0.00032109,30]
[342661565,1732027889217,-3161.56312899,0.00032109,30]
[342661566,1732027889226,-5100.0,0.00032109,35]
[342661567,1732027889235,-2312.138116,0.00032109,120]
[342661568,1732027889245,-3032.24540966,0.00032109,2]
[342661569,1732027889254,-258.33654901,0.00032109,30]
[342661570,1732027889264,-2500.0,0.00032109,30]
[342661571,1732027889273,-155224.57732041,0.00032109,30]
[342661572,1732027889286,-2425.03333824,0.00032109,30]
[342661573,1732027889295,-206.90518717,0.00032109,120]
[342661574,1732027889304,-835.92400443,0.00032109,30]
[342661575,1732027889314,-2009.03245874,0.00032109,30]
[342661576,1732027889323,-3000.0,0.00032109,30]
[342661577,1732027889334,-4693.85321669,0.00032109,120]
[342661578,1732027889348,-843.91920764,0.00032109,30]
[342661579,1732027889358,-909.02009134,0.00032109,30]
[342661580,1732027889368,-203.45756841,0.00032109,30]
[342661581,1732027889378,-939.09910796,0.00032109,30]
[342661582,1732027889389,-1876.15145862,0.00032109,120]
[342661583,1732027889400,-226.11037282,0.00032109,30]
[342661584,1732027889413,-343.23776574,0.00032109,30]
[342661585,1732027889426,-1429.61092626,0.00032109,30]
[342661586,1732027889436,-1314.83780107,0.00032109,120]
[342661587,1732027889449,-1825.82387624,0.00032109,120]
[342661588,1732027889460,-42071.24569953,0.00032109,120]
[342661589,1732027889470,-510.67027561,0.00032109,30]
[342661590,1732027889479,-1295.75584463,0.00032109,120]
[342661591,1732027889489,-525.35583413,0.00032109,31]
[342661592,1732027889499,-750.0,0.00032109,30]
[342661593,1732027889509,-351.05038282,0.00032109,30]
[342661594,1732027889518,-322.61409129,0.00032109,120]
[342661595,1732027889530,-1641.72836696,0.00032109,60]
[342661596,1732027889539,-159.57594892,0.00032109,120]
[342661597,1732027889549,-477.97562445,0.00032109,30]
[342661598,1732027889560,-3003.26551558,0.00032109,30]
[342661599,1732027889570,-362.20994699,0.00032109,120]
[342661600,1732027889580,-1393.61935524,0.00032109,30]
[342661601,1732027889590,-88920.82685549,0.00032109,120]
[342661602,1732027889599,-1236.37433461,0.00032109,120]
[342661603,1732027889609,-863.81036717,0.00032109,30]
[342661604,1732027889618,-4302.21840212,0.00032109,120]
[342661605,1732027889628,-255.70929118,0.00032109,120]
[342661606,1732027889637,-30991.93721619,0.00032109,30]
[342661607,1732027889647,-198.94132621,0.00032109,30]
[342661608,1732027889656,-1244.67054944,0.00032109,120]
[342661609,1732027889665,-1970.95327099,0.00032109,120]
[342661610,1732027889676,-326.41293446,0.00032109,30]
[342661611,1732027889687,-2089.30806723,0.00032109,30]
[342661612,1732027889696,-369.64342114,0.00032109,30]
[342661613,1732027889706,-1452.43796176,0.00032109,120]
[342661614,1732027889716,-260.57400853,0.00032109,30]
[342661615,1732027889726,-2627.31795359,0.00032109,30]
[342661616,1732027889736,-230.24608722,0.00032109,60]
[342661617,1732027889746,-480.80603057,0.00032109,30]
[342661618,1732027889756,-2012.64143854,0.00032109,30]
[342661619,1732027889765,-241.79307351,0.00032109,45]
[342661620,1732027889775,-1726.11550502,0.00032109,30]
[342661621,1732027889790,-2270.46028712,0.00032109,30]
[342661622,1732027889800,-7673.26694907,0.00032109,30]
[342661623,1732027889810,-1064.53779447,0.00032109,120]
[342661624,1732027889820,-792.24567382,0.00032109,30]
[342661625,1732027889830,-299.40346503,0.00032109,120]
[342661626,1732027889840,-273.09035746,0.00032109,120]
[342661627,1732027889850,-4210.73565472,0.00032109,120]
[342661628,1732027889859,-15552.68469642,0.00032109,120]
[342661629,1732027889870,-1429.12671996,0.00032109,30]
[342661630,1732027889880,-3276.19477635,0.00032109,30]
[342661631,1732027889891,-7045.92655986,0.00032109,30]
[342661632,1732027889910,-11205.53360366,0.00032109,120]
[342661633,1732027889919,-1089.456612,0.00032109,30]
[342661634,1732027889929,-1255.10827436,0.00032109,120]
[342661635,1732027889939,-294.95812662,0.00032109,30]
[342661636,1732027889948,-2144.61366064,0.00032109,30]
[342661637,1732027889958,-27785.10304015,0.00032109,120]
[342661638,1732027889967,-275.0,0.00032109,30]
[342661639,1732027889978,-492.12376167,0.00032109,120]
[342661640,1732027889987,-1018.60598691,0.00032109,30]
[342661641,1732027889997,-500.0,0.00032109,120]
[342661642,1732027890007,-3242.56845574,0.00032109,30]
[342661643,1732027890016,-435.49,0.00032109,120]
[342661644,1732027890026,-155.84965492,0.00032109,120]
[342661645,1732027890038,-201.6,0.00032109,30]
[342661646,1732027890047,-201.6,0.00032109,30]
[342661647,1732027890057,-449.48268556,0.00032109,120]
[342661648,1732027890066,-5000.0,0.00032109,120]
[342661649,1732027890076,-5557.17890034,0.00032109,30]
[342661650,1732027890085,-1722.46525868,0.00032109,30]
[342661651,1732027890095,-31829.8177256,0.00032109,2]
[342661652,1732027890104,-624.21437835,0.00032109,120]
[342661653,1732027890113,-192.44797152,0.00032109,90]
[342661654,1732027890123,-2066.24917238,0.00032109,120]
[342661655,1732027890132,-216.93587906,0.00032109,120]
[342661656,1732027890142,-90000.0,0.00032109,120]
[342661657,1732027890152,-5100.0,0.00032109,36]
[342661658,1732027890161,-2403.21509677,0.00032109,2]
[342661659,1732027890172,-500.0,0.00032109,120]
[342661660,1732027890182,-500.0,0.00032109,120]
[342661661,1732027890191,-500.0,0.00032109,120]
[342661662,1732027890202,-500.0,0.00032109,120]
[342661663,1732027890212,-500.0,0.00032109,120]
[342661664,1732027890223,-268.70105123,0.00032109,120]
[342661665,1732027890234,-500.0,0.00032109,120]
[342661666,1732027890244,-160.05,0.00032109,120]
[342661667,1732027890255,-655.0,0.00032109,30]
[342661668,1732027890266,-1519.22846956,0.00032109,120]
[342661669,1732027890276,-1003.20253044,0.00032109,2]
[342661670,1732027890290,-1136.9807316,0.00032109,120]
[342661671,1732027890300,-3390.0,0.00032109,120]
[342661672,1732027890311,-346.0714074,0.00032109,120]
[342661673,1732027890322,-7220.29103765,0.00032109,2]
[342661674,1732027890332,-20615.50484551,0.00032109,30]
[342661675,1732027890345,-1092.7717164,0.00032109,30]
[342661676,1732027890355,-1026.45418736,0.00032109,2]
[342661677,1732027890365,-11367.9834814,0.00032109,120]
[342661678,1732027890375,-11304.66208972,0.00032109,30]
[342661679,1732027890386,-540.48516908,0.00032109,60]
[342661680,1732027890396,-803.49226033,0.00032109,120]
[342661681,1732027890405,-1553.23088686,0.00032109,120]
[342661682,1732027890598,-13900.52539427,0.00032109,120]
[342661683,1732027890615,-14695.68096848,0.00032109,120]
[342661684,1732027890624,-1018.18237489,0.00032109,120]
[342661685,1732027890634,-806.2482629,0.00032109,120]
[342661686,1732027890643,-1693.44627321,0.00032109,120]
[342661687,1732027890652,-202.12335226,0.00032109,120]
[342661688,1732027890661,-967.39421859,0.00032109,120]
[342661689,1732027890670,-1060.02395287,0.00032109,120]
[342661690,1732027890679,-214.10609395,0.00032109,120]
[342661691,1732027890688,-1563.54347639,0.00032109,120]
[342661692,1732027890698,-325.61769,0.00032109,120]
[342661693,1732027890706,-3031.20968669,0.00032109,120]
[342661694,1732027890719,-9602.42614537,0.00032109,120]
[342661695,1732027890738,-1049.85158968,0.00032109,120]
[342661696,1732027890749,-10398.06419549,0.00032109,120]
[342661697,1732027890759,-18357.10678082,0.00032109,30]
[342661698,1732027890768,-825.72556568,0.00032109,120]
[342661699,1732027890779,-310.0,0.00032109,2]
[342661700,1732027890791,-1080.0,0.00032109,65]
[342661701,1732027890805,-222.0,0.00032109,120]
[342661702,1732027890815,-36499.95321936,0.00032109,120]
[342661703,1732027890825,-7555.98367713,0.00032109,120]
[342661704,1732027890834,-8347.7177,0.00032109,30]
[342661705,1732027890844,-2222.57363945,0.00032109,30]
[342661706,1732027890854,-2509.59988249,0.00032109,120]
[342661707,1732027890864,-447.06385889,0.00032109,120]
[342661708,1732027890873,-10060.89474301,0.00032109,120]
[342661709,1732027890883,-164.37168159,0.00032109,60]
[342661710,1732027890893,-244.08,0.00032109,2]
[342661711,1732027890902,-357.0,0.00032109,30]
[342661712,1732027890912,-949.29181939,0.00032109,120]
[342661713,1732027890921,-201.6,0.00032109,30]
[342661714,1732027890930,-201.6,0.00032109,30]
[342661715,1732027890940,-201.6,0.00032109,30]
[342661716,1732027890950,-1000.0,0.00032109,60]
[342661717,1732027890959,-1000.0,0.00032109,60]
[342661718,1732027890969,-1000.0,0.00032109,60]
[342661719,1732027890978,-1000.0,0.00032109,30]
[342661720,1732027890987,-1000.0,0.00032109,60]
[342661721,1732027890997,-1000.0,0.00032109,60]
[342661722,1732027891006,-1000.0,0.00032109,60]
[342661723,1732027891016,-1000.0,0.00032109,60]
[342661724,1732027891025,-693.09207912,0.00032109,2]
[342661725,1732027891036,-2000.0,0.00032109,30]
[342661726,1732027891045,-13897.41733647,0.00032109,120]
[342661727,1732027891054,-5277.60419675,0.00032109,120]
[342661728,1732027891063,-3882.04,0.00032109,2]
[342661729,1732027891072,-161.9980283,0.00032109,2]
[342661730,1732027891082,-1054.0,0.00032109,10]
[342661731,1732027891091,-1054.0,0.00032109,10]
[342661732,1732027891101,-1054.0,0.00032109,10]
[342661733,1732027891109,-1054.0,0.00032109,10]
[342661734,1732027891118,-1054.0,0.00032109,10]
[342661735,1732027891127,-1054.0,0.00032109,10]
[342661736,1732027891136,-547.02102546,0.00032109,7]
[342661737,1732027891145,-1054.0,0.00032109,10]
[342661738,1732027891154,-1114.19,0.00032109,10]
[342661739,1732027891163,-102217.35017847,0.00032109,2]
[342661740,1732027891173,-270.31903145,0.00032109,7]
[342661741,1732027891182,-500.0,0.00032109,30]
[342661742,1732027891191,-39732.65028241,0.00032109,120]
[342661743,1732027891200,-3011.47968471,0.00032109,30]
[342661744,1732027891209,-3628.91815004,0.00032109,2]
[342661745,1732027891219,-941.72117941,0.00032109,30]
[342661746,1732027891228,-1460.01563789,0.00032109,10]
[342661747,1732027891238,-499.760076,0.00032109,30]
[342661748,1732027891247,-1000.0,0.00032109,120]
[342661749,1732027891257,-1000.0,0.00032109,120]
[342661750,1732027891267,-1000.0,0.00032109,120]
[342661751,1732027891276,-394.52438924,0.00032109,120]
[342661752,1732027891288,-158.193695,0.00032109,40]
[342661753,1732027891298,-158.193695,0.00032109,40]